[Event "*** Titled Tuesday Blitz"]
[Site "Chess.com"]
[Date "2018.06.05"]
[Round "7"]
[White "VovenRogel"]
[Black "ulises2013"]
[Result "1-0"]
[WhiteElo "2632"]
[BlackElo "2434"]
[TimeControl "180+2"]
[EndTime "14:40:17 PDT"]
[Termination "VovenRogel won by resignation"]

1. d4 {[%clk 0:03:01.9]} 1... g6 {[%clk 0:02:59.8]} 2. c4 {[%clk 0:03:00.9]}
2... Bg7 {[%clk 0:03:00.8]} 3. Nf3 {[%clk 0:03:02.8]} 3... c5 {[%clk 0:03:01.3]}
4. e3 {[%clk 0:03:02]} 4... Nf6 {[%clk 0:03:01.4]} 5. Nc3 {[%clk 0:03:02.7]}
5... cxd4 {[%clk 0:03:01.9]} 6. exd4 {[%clk 0:03:03.7]} 6... d5 {[%clk
0:03:01.7]} 7. cxd5 {[%clk 0:03:04.1]} 7... Nxd5 {[%clk 0:03:01.6]} 8. Bb5+
{[%clk 0:03:04.2]} 8... Bd7 {[%clk 0:02:55.2]} 9. Bxd7+ {[%clk 0:02:53.4]} 9...
Qxd7 {[%clk 0:02:56]} 10. O-O {[%clk 0:02:55.3]} 10... Nc6 {[%clk 0:02:56]} 11.
Qb3 {[%clk 0:02:52.4]} 11... Rd8 {[%clk 0:02:51.7]} 12. Bg5 {[%clk 0:02:38.8]}
12... O-O {[%clk 0:02:49]} 13. Rfe1 {[%clk 0:02:34]} 13... e6 {[%clk 0:02:47.8]}
14. Bxd8 {[%clk 0:02:33.8]} 14... Rxd8 {[%clk 0:02:48.6]} 15. Rad1 {[%clk
0:02:32.2]} 15... a6 {[%clk 0:02:46.8]} 16. Ne5 {[%clk 0:02:30.7]} 16... Qc8
{[%clk 0:02:43.7]} 17. Nxd5 {[%clk 0:02:30.1]} 17... Rxd5 {[%clk 0:02:45.6]} 18.
Rc1 {[%clk 0:02:30.9]} 18... Bxe5 {[%clk 0:02:45.2]} 19. dxe5 {[%clk 0:02:31.6]}
19... Qd7 {[%clk 0:02:44.8]} 20. Rcd1 {[%clk 0:02:31.1]} 20... Nd4 {[%clk
0:02:41.5]} 21. Qe3 {[%clk 0:02:30.8]} 21... Qa4 {[%clk 0:02:15.6]} 22. b3
{[%clk 0:02:28.9]} 22... Qb4 {[%clk 0:02:08]} 23. Qe4 {[%clk 0:02:22.7]} 23...
Kg7 {[%clk 0:02:00.4]} 24. Kh1 {[%clk 0:02:23.1]} 24... Qa5 {[%clk 0:01:47.9]}
25. h3 {[%clk 0:02:21.1]} 25... h5 {[%clk 0:01:46.1]} 26. Re3 {[%clk 0:02:17.3]}
26... Nf5 {[%clk 0:01:23.6]} 27. Red3 {[%clk 0:02:13.5]} 27... Rxe5 {[%clk
0:01:24.1]} 28. Qf4 {[%clk 0:02:02.2]} 28... Re1+ {[%clk 0:01:18.6]} 29. Rxe1
{[%clk 0:02:03]} 29... Qxe1+ {[%clk 0:01:20.5]} 30. Kh2 {[%clk 0:02:04.9]} 30...
Qa5 {[%clk 0:01:18.1]} 31. Qd2 {[%clk 0:02:03.4]} 31... Qe5+ {[%clk 0:01:13.8]}
32. Kg1 {[%clk 0:02:03.7]} 32... Qa1+ {[%clk 0:01:12.3]} 33. Kh2 {[%clk
0:02:04.7]} 33... Qe5+ {[%clk 0:01:13.2]} 34. g3 {[%clk 0:02:05.8]} 34... h4
{[%clk 0:01:11]} 35. Qc3 {[%clk 0:02:06.8]} 35... hxg3+ {[%clk 0:01:08]} 36.
fxg3 {[%clk 0:02:07.3]} 36... Qxc3 {[%clk 0:01:05.4]} 37. Rxc3 {[%clk
0:02:08.2]} 37... Kf6 {[%clk 0:00:44.6]} 38. Rd3 {[%clk 0:02:05.9]} 38... Ke7
{[%clk 0:00:41.9]} 39. Kg2 {[%clk 0:02:02.9]} 39... Nd6 {[%clk 0:00:42]} 40. h4
{[%clk 0:02:00.2]} 40... e5 {[%clk 0:00:43.2]} 41. g4 {[%clk 0:02:01.4]} 41...
Ke6 {[%clk 0:00:36.6]} 42. h5 {[%clk 0:01:59.6]} 42... gxh5 {[%clk 0:00:37.2]}
43. gxh5 {[%clk 0:02:01.5]} 43... Nf5 {[%clk 0:00:32.2]} 44. Rd8 {[%clk
0:01:50.6]} 44... Ke7 {[%clk 0:00:21.3]} 45. Rb8 {[%clk 0:01:50.7]} 45... b5
{[%clk 0:00:22.2]} 46. Rb6 {[%clk 0:01:50.5]} 1-0

[Event "*** Titled Tuesday Blitz"]
[Site "Chess.com"]
[Date "2018.06.05"]
[Round "7"]
[White "maciek_92"]
[Black "Blitzstream"]
[Result "1-0"]
[WhiteElo "2614"]
[BlackElo "2431"]
[TimeControl "180+2"]
[EndTime "14:40:29 PDT"]
[Termination "maciek_92 won by checkmate"]

1. d4 {[%clk 0:03:01.9]} 1... g6 {[%clk 0:02:58.7]} 2. c4 {[%clk 0:03:02.8]}
2... Bg7 {[%clk 0:02:59.6]} 3. Nc3 {[%clk 0:03:04.7]} 3... b6 {[%clk 0:03:00.7]}
4. e4 {[%clk 0:03:05.4]} 4... Bb7 {[%clk 0:03:00.7]} 5. f4 {[%clk 0:03:06.3]}
5... e6 {[%clk 0:02:59.7]} 6. Nf3 {[%clk 0:03:07.3]} 6... Ne7 {[%clk 0:03:01.3]}
7. h4 {[%clk 0:03:04.8]} 7... h6 {[%clk 0:03:00.5]} 8. h5 {[%clk 0:03:04.4]}
8... d6 {[%clk 0:03:01.4]} 9. hxg6 {[%clk 0:03:04.6]} 9... fxg6 {[%clk
0:02:57.9]} 10. d5 {[%clk 0:03:00.6]} 10... Nd7 {[%clk 0:02:39.7]} 11. Nd4
{[%clk 0:02:54.9]} 11... Bxd4 {[%clk 0:02:34.3]} 12. Qxd4 {[%clk 0:02:53.2]}
12... e5 {[%clk 0:02:34.1]} 13. Qd3 {[%clk 0:02:51.9]} 13... Nc5 {[%clk
0:01:48.6]} 14. Qh3 {[%clk 0:02:43.2]} 14... Qd7 {[%clk 0:01:42.9]} 15. g3
{[%clk 0:02:44.5]} 15... O-O-O {[%clk 0:01:29]} 16. b4 {[%clk 0:02:34.2]} 16...
Qxh3 {[%clk 0:01:09.7]} 17. Bxh3+ {[%clk 0:02:36.1]} 17... Nd7 {[%clk
0:01:11.5]} 18. a4 {[%clk 0:02:36.1]} 18... Kb8 {[%clk 0:01:11.5]} 19. a5 {[%clk
0:02:37.2]} 19... Nf6 {[%clk 0:01:10.6]} 20. fxe5 {[%clk 0:02:35.5]} 20... dxe5
{[%clk 0:01:11.2]} 21. axb6 {[%clk 0:02:35]} 21... axb6 {[%clk 0:01:11.6]} 22.
Be3 {[%clk 0:02:33.7]} 22... g5 {[%clk 0:00:50.7]} 23. Ke2 {[%clk 0:02:11.4]}
23... Bc8 {[%clk 0:00:28.7]} 24. Bxc8 {[%clk 0:02:07.6]} 24... Kxc8 {[%clk
0:00:30.6]} 25. c5 {[%clk 0:02:06.4]} 25... bxc5 {[%clk 0:00:28.5]} 26. bxc5
{[%clk 0:02:08.3]} 26... Kd7 {[%clk 0:00:23.1]} 27. Ra7 {[%clk 0:02:06.7]} 27...
Nxe4 {[%clk 0:00:21.4]} 28. c6+ {[%clk 0:02:00.6]} 28... Ke8 {[%clk 0:00:21]}
29. Nxe4 {[%clk 0:02:01.1]} 29... Nxd5 {[%clk 0:00:22.2]} 30. Bxg5 {[%clk
0:02:00.7]} 30... Rb8 {[%clk 0:00:21.1]} 31. Nf6+ {[%clk 0:02:01.6]} 31... Nxf6
{[%clk 0:00:21.5]} 32. Bxf6 {[%clk 0:02:03.5]} 32... Rg8 {[%clk 0:00:22.6]} 33.
Rxh6 {[%clk 0:02:04.2]} 33... Rb2+ {[%clk 0:00:22.4]} 34. Kf3 {[%clk 0:02:05.1]}
34... Rb3+ {[%clk 0:00:23.7]} 35. Ke4 {[%clk 0:02:06.3]} 35... Rb4+ {[%clk
0:00:23]} 36. Kf5 {[%clk 0:02:06.4]} 36... Rb8 {[%clk 0:00:19.9]} 37. Ke6 {[%clk
0:02:07]} 37... e4 {[%clk 0:00:20]} 38. Rxc7 {[%clk 0:02:06.6]} 38... e3 {[%clk
0:00:21.3]} 39. Rhh7 {[%clk 0:02:05]} 39... e2 {[%clk 0:00:17.8]} 40. Rhe7+
{[%clk 0:02:03.1]} 40... Kf8 {[%clk 0:00:19.1]} 41. Rf7+ {[%clk 0:02:04.1]}
41... Ke8 {[%clk 0:00:20.6]} 42. Rce7+ {[%clk 0:02:05.1]} 42... Kd8 {[%clk
0:00:22.1]} 43. c7+ {[%clk 0:02:03.9]} 43... Kc8 {[%clk 0:00:23.5]} 44. cxb8=R+
{[%clk 0:02:03.9]} 44... Kxb8 {[%clk 0:00:25.4]} 45. Rb7+ {[%clk 0:02:03.3]}
45... Ka8 {[%clk 0:00:25.6]} 46. Ra7+ {[%clk 0:02:04.7]} 46... Kb8 {[%clk
0:00:27]} 47. Be5+ {[%clk 0:02:06.6]} 47... Kc8 {[%clk 0:00:28.1]} 48. Rfc7+
{[%clk 0:02:08.1]} 48... Kd8 {[%clk 0:00:28.9]} 49. Bf6+ {[%clk 0:02:09.3]}
49... Ke8 {[%clk 0:00:29.6]} 50. Re7+ {[%clk 0:02:05]} 50... Kd8 {[%clk
0:00:28.5]} 51. Rg7+ {[%clk 0:02:04.8]} 51... Kc8 {[%clk 0:00:15.8]} 52. Rxg8#
{[%clk 0:02:03.4]} 1-0

[Event "*** Titled Tuesday Blitz"]
[Site "Chess.com"]
[Date "2018.06.05"]
[Round "7"]
[White "ENEASZ"]
[Black "Jahonas"]
[Result "1-0"]
[WhiteElo "2508"]
[BlackElo "2236"]
[TimeControl "180+2"]
[EndTime "14:40:33 PDT"]
[Termination "ENEASZ won by resignation"]

1. e4 {[%clk 0:03:01.9]} 1... c6 {[%clk 0:03:00.3]} 2. d3 {[%clk 0:03:01.3]}
2... d5 {[%clk 0:03:01.2]} 3. Nd2 {[%clk 0:03:03.2]} 3... dxe4 {[%clk
0:03:01.9]} 4. dxe4 {[%clk 0:03:05.1]} 4... Nf6 {[%clk 0:03:03]} 5. Ngf3 {[%clk
0:03:06.4]} 5... e6 {[%clk 0:03:03.4]} 6. Bd3 {[%clk 0:03:06.7]} 6... Be7 {[%clk
0:03:04]} 7. O-O {[%clk 0:03:07.1]} 7... Nbd7 {[%clk 0:03:05]} 8. e5 {[%clk
0:03:07.1]} 8... Nd5 {[%clk 0:03:05.3]} 9. Nc4 {[%clk 0:03:04.1]} 9... Nc5
{[%clk 0:03:06]} 10. Be2 {[%clk 0:03:03.4]} 10... b5 {[%clk 0:03:06.2]} 11. Ne3
{[%clk 0:02:51.2]} 11... Nxe3 {[%clk 0:03:05.5]} 12. Bxe3 {[%clk 0:02:53.1]}
12... Qc7 {[%clk 0:03:05.5]} 13. Re1 {[%clk 0:02:38.1]} 13... Bb7 {[%clk
0:03:06.2]} 14. c4 {[%clk 0:02:35.6]} 14... b4 {[%clk 0:03:04.7]} 15. Qc2 {[%clk
0:02:32.6]} 15... Rd8 {[%clk 0:03:02.4]} 16. Rad1 {[%clk 0:02:31.4]} 16... O-O
{[%clk 0:03:01.8]} 17. h4 {[%clk 0:02:26.7]} 17... a5 {[%clk 0:02:57.4]} 18. h5
{[%clk 0:02:27.3]} 18... h6 {[%clk 0:02:58.1]} 19. Qc1 {[%clk 0:02:27.7]} 19...
Rxd1 {[%clk 0:02:53.2]} 20. Rxd1 {[%clk 0:02:28.1]} 20... Rd8 {[%clk 0:02:53.7]}
21. Bd4 {[%clk 0:02:27.7]} 21... Nd7 {[%clk 0:02:46.7]} 22. c5 {[%clk
0:02:27.2]} 22... Nf8 {[%clk 0:02:45.7]} 23. Qe3 {[%clk 0:02:27]} 23... Qc8
{[%clk 0:02:44.3]} 24. Bd3 {[%clk 0:02:21.2]} 24... Ba6 {[%clk 0:02:21.8]} 25.
Bc2 {[%clk 0:02:21.8]} 25... Bc4 {[%clk 0:02:08.2]} 26. Nd2 {[%clk 0:02:16.8]}
26... Bxa2 {[%clk 0:02:04.3]} 27. b3 {[%clk 0:02:03.3]} 27... a4 {[%clk
0:02:04.3]} 28. bxa4 {[%clk 0:02:04.8]} 28... Bd5 {[%clk 0:02:00.3]} 29. Ne4
{[%clk 0:02:05.5]} 29... Bxe4 {[%clk 0:02:00.4]} 30. Qxe4 {[%clk 0:02:07.4]}
30... Qa6 {[%clk 0:01:54.9]} 31. Bb3 {[%clk 0:02:06.7]} 31... Nd7 {[%clk
0:01:06]} 32. Be3 {[%clk 0:02:07.3]} 32... Qb7 {[%clk 0:00:49.5]} 33. Rc1 {[%clk
0:02:00]} 33... Qc7 {[%clk 0:00:47.8]} 34. f4 {[%clk 0:01:59.1]} 34... Rb8
{[%clk 0:00:26.6]} 35. Bf2 {[%clk 0:01:49.2]} 35... Rc8 {[%clk 0:00:20.6]} 36.
f5 {[%clk 0:01:39.4]} 36... Qxe5 {[%clk 0:00:20.1]} 37. Qxe5 {[%clk 0:01:40]}
37... Nxe5 {[%clk 0:00:21.3]} 38. fxe6 {[%clk 0:01:41.4]} 38... Nd3 {[%clk
0:00:19.3]} 39. exf7+ {[%clk 0:01:42.4]} 39... Kf8 {[%clk 0:00:20.5]} 40. Rc4
{[%clk 0:01:27.1]} 40... Nxf2 {[%clk 0:00:20.3]} 41. Kxf2 {[%clk 0:01:29]} 41...
Rd8 {[%clk 0:00:16.7]} 42. Ke2 {[%clk 0:01:26.6]} 42... Rd5 {[%clk 0:00:15.9]}
43. Rxb4 {[%clk 0:01:24.9]} 43... Re5+ {[%clk 0:00:16.1]} 44. Kd3 {[%clk
0:01:23.6]} 1-0

[Event "*** Titled Tuesday Blitz"]
[Site "Chess.com"]
[Date "2018.06.05"]
[Round "7"]
[White "comedy_of_errors"]
[Black "OparinGrigoriy"]
[Result "0-1"]
[WhiteElo "2589"]
[BlackElo "2886"]
[TimeControl "180+2"]
[EndTime "14:40:35 PDT"]
[Termination "OparinGrigoriy won by resignation"]

1. Nf3 {[%clk 0:03:01.9]} 1... Nf6 {[%clk 0:03:00.5]} 2. g3 {[%clk 0:03:03]}
2... b6 {[%clk 0:03:02]} 3. Bg2 {[%clk 0:03:03.1]} 3... Bb7 {[%clk 0:03:03.9]}
4. O-O {[%clk 0:03:04.4]} 4... e6 {[%clk 0:03:05.5]} 5. c4 {[%clk 0:03:05]} 5...
c5 {[%clk 0:03:06.9]} 6. b3 {[%clk 0:03:06.4]} 6... Be7 {[%clk 0:03:07.2]} 7.
Bb2 {[%clk 0:03:07.8]} 7... O-O {[%clk 0:03:08]} 8. e3 {[%clk 0:03:07.8]} 8...
d5 {[%clk 0:03:09.4]} 9. Qe2 {[%clk 0:03:08.5]} 9... Qc8 {[%clk 0:03:09]} 10.
Rd1 {[%clk 0:03:08.7]} 10... Rd8 {[%clk 0:03:04]} 11. Nc3 {[%clk 0:03:00.7]}
11... d4 {[%clk 0:02:54.6]} 12. exd4 {[%clk 0:03:00.9]} 12... cxd4 {[%clk
0:02:56]} 13. Nb5 {[%clk 0:03:02.3]} 13... d3 {[%clk 0:02:53.5]} 14. Qf1 {[%clk
0:02:48.3]} 14... Nc6 {[%clk 0:02:47.8]} 15. Ne5 {[%clk 0:02:06]} 15... Nxe5
{[%clk 0:02:38.2]} 16. Bxe5 {[%clk 0:02:07.9]} 16... Ng4 {[%clk 0:02:38.2]} 17.
Bf4 {[%clk 0:01:50.1]} 17... e5 {[%clk 0:02:15.6]} 18. Be3 {[%clk 0:01:48.7]}
18... e4 {[%clk 0:02:15]} 19. f3 {[%clk 0:01:47]} 19... Nxe3 {[%clk 0:02:12.1]}
20. dxe3 {[%clk 0:01:47]} 20... Bc5 {[%clk 0:02:12.8]} 21. Qf2 {[%clk 0:01:30]}
21... f5 {[%clk 0:01:39.8]} 22. Kh1 {[%clk 0:00:51.1]} 22... Qd7 {[%clk
0:01:34.4]} 23. Nc3 {[%clk 0:00:48.9]} 23... Qe7 {[%clk 0:01:32.6]} 24. fxe4
{[%clk 0:00:35.8]} 24... fxe4 {[%clk 0:01:33.3]} 25. Qf4 {[%clk 0:00:33.6]}
25... Rf8 {[%clk 0:01:32.4]} 26. Qg4 {[%clk 0:00:33.2]} 26... Rae8 {[%clk
0:01:32]} 27. Nd5 {[%clk 0:00:20.1]} 27... Qe5 {[%clk 0:01:21.6]} 28. b4 {[%clk
0:00:21.4]} 28... Bxd5 {[%clk 0:01:18.3]} 29. bxc5 {[%clk 0:00:20.8]} 29... Bxc4
{[%clk 0:01:18]} 30. Rac1 {[%clk 0:00:20.1]} 30... b5 {[%clk 0:01:17.5]} 31. c6
{[%clk 0:00:20.1]} 31... h5 {[%clk 0:01:12.6]} 32. Qh4 {[%clk 0:00:19.6]} 32...
Rf2 {[%clk 0:01:12.5]} 33. c7 {[%clk 0:00:19.7]} 33... Qxc7 {[%clk 0:01:09.3]}
34. Bxe4 {[%clk 0:00:21]} 34... Qd6 {[%clk 0:01:02.7]} 35. Rf1 {[%clk
0:00:11.1]} 35... Rxe4 {[%clk 0:00:57.3]} 36. Qxe4 {[%clk 0:00:10.8]} 36...
Rxf1+ {[%clk 0:00:58.7]} 0-1

[Event "*** Titled Tuesday Blitz"]
[Site "Chess.com"]
[Date "2018.06.05"]
[Round "7"]
[White "Beca95"]
[Black "Sanan_Sjugirov"]
[Result "1-0"]
[WhiteElo "2777"]
[BlackElo "2711"]
[TimeControl "180+2"]
[EndTime "14:40:37 PDT"]
[Termination "Beca95 won by resignation"]

1. d4 {[%clk 0:03:01.9]} 1... Nf6 {[%clk 0:02:59.6]} 2. c4 {[%clk 0:03:02.9]}
2... g6 {[%clk 0:03:00.8]} 3. Nc3 {[%clk 0:03:03.5]} 3... d5 {[%clk 0:03:02.3]}
4. Nf3 {[%clk 0:03:04.5]} 4... Bg7 {[%clk 0:03:02.6]} 5. Qb3 {[%clk 0:03:06.1]}
5... dxc4 {[%clk 0:03:02.5]} 6. Qxc4 {[%clk 0:03:08]} 6... O-O {[%clk
0:03:03.7]} 7. e4 {[%clk 0:03:09.2]} 7... a6 {[%clk 0:03:03.8]} 8. e5 {[%clk
0:03:09.7]} 8... b5 {[%clk 0:02:55.7]} 9. Qb3 {[%clk 0:03:08.8]} 9... Nfd7
{[%clk 0:02:56.5]} 10. e6 {[%clk 0:03:10.1]} 10... fxe6 {[%clk 0:02:56.3]} 11.
Be3 {[%clk 0:03:11.1]} 11... Nb6 {[%clk 0:02:50.8]} 12. h4 {[%clk 0:03:11.2]}
12... Nc6 {[%clk 0:02:41.2]} 13. O-O-O {[%clk 0:03:10.5]} 13... Na5 {[%clk
0:02:33.4]} 14. Qc2 {[%clk 0:03:11.3]} 14... b4 {[%clk 0:02:32]} 15. Ne4 {[%clk
0:03:11.1]} 15... Qd5 {[%clk 0:02:30.5]} 16. b3 {[%clk 0:03:09.7]} 16... Bb7
{[%clk 0:02:22.6]} 17. Nc5 {[%clk 0:03:10.5]} 17... Nd7 {[%clk 0:02:14.3]} 18.
Nxb7 {[%clk 0:02:44.6]} 18... Qxb7 {[%clk 0:02:06]} 19. h5 {[%clk 0:02:45.7]}
19... c5 {[%clk 0:01:51.9]} 20. hxg6 {[%clk 0:02:31.2]} 20... cxd4 {[%clk
0:01:49.4]} 21. gxh7+ {[%clk 0:02:32.1]} 21... Kh8 {[%clk 0:01:48.7]} 22. Nh4
{[%clk 0:02:31.4]} 22... Ne5 {[%clk 0:01:38.8]} 23. Bxd4 {[%clk 0:02:17.1]}
23... Rac8 {[%clk 0:01:33.7]} 24. Bc4 {[%clk 0:02:17.4]} 24... Naxc4 {[%clk
0:01:24.1]} 25. bxc4 {[%clk 0:02:17.4]} 25... Rxc4 {[%clk 0:00:59]} 26. Qxc4
{[%clk 0:02:17.7]} 26... Rc8 {[%clk 0:00:59.6]} 27. Qxc8+ {[%clk 0:02:18.7]}
27... Qxc8+ {[%clk 0:01:00.6]} 28. Kb1 {[%clk 0:02:20.3]} 28... Qc4 {[%clk
0:00:48.6]} 29. Rd2 {[%clk 0:01:54.6]} 29... b3 {[%clk 0:00:38.5]} 30. a3 {[%clk
0:01:31.8]} 30... Kxh7 {[%clk 0:00:37.8]} 31. Nf5+ {[%clk 0:01:32.4]} 31... Kg6
{[%clk 0:00:36.4]} 32. Nxg7 {[%clk 0:01:33.3]} 32... Nc6 {[%clk 0:00:21.5]} 33.
Bb2 {[%clk 0:01:33.9]} 33... Qe4+ {[%clk 0:00:19.7]} 34. Ka1 {[%clk 0:01:32.4]}
34... Qf4 {[%clk 0:00:11]} 35. Rdd1 {[%clk 0:01:21.8]} 35... e5 {[%clk
0:00:03.8]} 36. Ne6 {[%clk 0:01:14.1]} 36... Qc4 {[%clk 0:00:04.9]} 37. Nf8+
{[%clk 0:01:13.7]} 37... Kf7 {[%clk 0:00:05.6]} 38. Nd7 {[%clk 0:01:14.5]} 38...
Ke6 {[%clk 0:00:04.8]} 39. Rh6+ {[%clk 0:01:14.5]} 39... Kf5 {[%clk 0:00:06.2]}
40. g4+ {[%clk 0:01:14.8]} 40... Kxg4 {[%clk 0:00:06]} 41. Rxc6 {[%clk
0:01:14.2]} 1-0

[Event "*** Titled Tuesday Blitz"]
[Site "Chess.com"]
[Date "2018.06.05"]
[Round "7"]
[White "Anton_Demchenko"]
[Black "VitaliyBernadskiy"]
[Result "1/2-1/2"]
[WhiteElo "2768"]
[BlackElo "2648"]
[TimeControl "180+2"]
[EndTime "14:40:49 PDT"]
[Termination "Game drawn by agreement"]

1. e4 {[%clk 0:03:01.9]} 1... c5 {[%clk 0:03:00.6]} 2. Nf3 {[%clk 0:03:02.5]}
2... Nc6 {[%clk 0:03:01.6]} 3. Bb5 {[%clk 0:03:03.1]} 3... Nf6 {[%clk
0:03:01.3]} 4. Bxc6 {[%clk 0:03:02.8]} 4... dxc6 {[%clk 0:03:01.3]} 5. d3 {[%clk
0:03:04.1]} 5... Bg4 {[%clk 0:03:01.8]} 6. h3 {[%clk 0:03:04.4]} 6... Bxf3
{[%clk 0:03:02]} 7. Qxf3 {[%clk 0:03:04.9]} 7... g6 {[%clk 0:03:03.5]} 8. Nc3
{[%clk 0:03:01.3]} 8... Bg7 {[%clk 0:03:02]} 9. Be3 {[%clk 0:02:59.8]} 9... Nd7
{[%clk 0:03:02.6]} 10. O-O {[%clk 0:03:00.3]} 10... O-O {[%clk 0:03:02.3]} 11.
Qe2 {[%clk 0:02:58.6]} 11... e5 {[%clk 0:02:56.4]} 12. Qd2 {[%clk 0:02:38]}
12... Re8 {[%clk 0:02:54.3]} 13. b3 {[%clk 0:02:36.8]} 13... b6 {[%clk 0:02:52]}
14. a4 {[%clk 0:02:32.3]} 14... Nf8 {[%clk 0:02:46.4]} 15. a5 {[%clk 0:02:29.2]}
15... Ne6 {[%clk 0:02:46.8]} 16. Ne2 {[%clk 0:02:28.4]} 16... Qd6 {[%clk
0:02:35.3]} 17. Bh6 {[%clk 0:02:13.1]} 17... b5 {[%clk 0:02:11.1]} 18. Bxg7
{[%clk 0:02:13.4]} 18... Kxg7 {[%clk 0:02:12.9]} 19. f4 {[%clk 0:02:12.8]} 19...
exf4 {[%clk 0:02:13.1]} 20. Nxf4 {[%clk 0:02:14.1]} 20... Nxf4 {[%clk
0:01:55.8]} 21. Qxf4 {[%clk 0:02:16]} 21... Qxf4 {[%clk 0:01:53]} 22. Rxf4
{[%clk 0:02:17.9]} 22... f6 {[%clk 0:01:42.8]} 23. a6 {[%clk 0:02:02.8]} 23...
Rad8 {[%clk 0:01:31.6]} 24. Kf2 {[%clk 0:02:02.9]} 24... c4 {[%clk 0:01:24.7]}
25. bxc4 {[%clk 0:02:00.6]} 25... bxc4 {[%clk 0:01:26.6]} 26. Ke3 {[%clk
0:01:43.5]} 26... cxd3 {[%clk 0:01:21.3]} 27. cxd3 {[%clk 0:01:45.4]} 27... Rd6
{[%clk 0:01:16.9]} 28. Rf2 {[%clk 0:01:36]} 28... f5 {[%clk 0:01:15.2]} 29. Rb2
{[%clk 0:01:29.5]} 29... c5 {[%clk 0:00:53.5]} 30. Rb7+ {[%clk 0:01:16.1]} 30...
Kh6 {[%clk 0:00:54]} 31. Rc7 {[%clk 0:01:05.1]} 31... fxe4 {[%clk 0:00:48.6]}
32. dxe4 {[%clk 0:01:02.5]} 32... Rd4 {[%clk 0:00:49.4]} 33. Rxa7 {[%clk
0:00:54.6]} 33... Rexe4+ {[%clk 0:00:47.2]} 34. Kf3 {[%clk 0:00:55.8]} 34... Ra4
{[%clk 0:00:47.7]} 35. Rb1 {[%clk 0:00:32.4]} 35... Reb4 {[%clk 0:00:36.6]} 36.
Rxb4 {[%clk 0:00:20.4]} 36... cxb4 {[%clk 0:00:36.9]} 37. Rb7 {[%clk 0:00:15.7]}
1/2-1/2

[Event "*** Titled Tuesday Blitz"]
[Site "Chess.com"]
[Date "2018.06.05"]
[Round "7"]
[White "cukus"]
[Black "Ali_rastbod"]
[Result "1-0"]
[WhiteElo "2412"]
[BlackElo "2501"]
[TimeControl "180+2"]
[EndTime "14:41:02 PDT"]
[Termination "cukus won by resignation"]

1. e4 {[%clk 0:03:01.9]} 1... Nf6 {[%clk 0:02:59.2]} 2. e5 {[%clk 0:03:01.6]}
2... Nd5 {[%clk 0:03:00.8]} 3. d4 {[%clk 0:03:02.8]} 3... d6 {[%clk 0:03:01.7]}
4. Nf3 {[%clk 0:03:03.9]} 4... Bg4 {[%clk 0:03:01.8]} 5. Be2 {[%clk 0:03:00.2]}
5... e6 {[%clk 0:03:01.5]} 6. c4 {[%clk 0:02:59.5]} 6... Nb6 {[%clk 0:03:02.2]}
7. exd6 {[%clk 0:03:00.2]} 7... cxd6 {[%clk 0:03:03.5]} 8. Nc3 {[%clk
0:02:54.2]} 8... Be7 {[%clk 0:02:59.8]} 9. d5 {[%clk 0:02:37.9]} 9... e5 {[%clk
0:02:56.4]} 10. h3 {[%clk 0:02:34.1]} 10... Bh5 {[%clk 0:02:53.3]} 11. b3 {[%clk
0:02:11.2]} 11... O-O {[%clk 0:02:52.1]} 12. O-O {[%clk 0:02:11.9]} 12... N6d7
{[%clk 0:02:37.2]} 13. Bb2 {[%clk 0:02:02.3]} 13... f5 {[%clk 0:02:29.2]} 14. b4
{[%clk 0:01:57.2]} 14... Bxf3 {[%clk 0:02:23.1]} 15. Bxf3 {[%clk 0:01:56.9]}
15... e4 {[%clk 0:02:25]} 16. Be2 {[%clk 0:01:55]} 16... Bf6 {[%clk 0:02:25.6]}
17. Rb1 {[%clk 0:01:42.9]} 17... a5 {[%clk 0:02:23.6]} 18. a3 {[%clk 0:01:39.8]}
18... axb4 {[%clk 0:02:24.9]} 19. axb4 {[%clk 0:01:39.8]} 19... Na6 {[%clk
0:02:26.8]} 20. Nb5 {[%clk 0:01:32.5]} 20... Bxb2 {[%clk 0:02:19.9]} 21. Rxb2
{[%clk 0:01:32.6]} 21... Ne5 {[%clk 0:02:20.2]} 22. Nd4 {[%clk 0:01:24.9]} 22...
Rf6 {[%clk 0:02:11.7]} 23. Ne6 {[%clk 0:01:21.1]} 23... Qe7 {[%clk 0:02:02.2]}
24. Qd4 {[%clk 0:00:54.7]} 24... Nc7 {[%clk 0:01:36.1]} 25. Nxc7 {[%clk
0:00:51.8]} 25... Qxc7 {[%clk 0:01:38]} 26. c5 {[%clk 0:00:48.2]} 26... Raf8
{[%clk 0:01:07.5]} 27. f4 {[%clk 0:00:45.5]} 27... e3 {[%clk 0:01:06.6]} 28.
fxe5 {[%clk 0:00:43.4]} 28... dxe5 {[%clk 0:01:06.7]} 29. Qxe3 {[%clk
0:00:44.2]} 29... e4 {[%clk 0:00:59]} 30. d6 {[%clk 0:00:43.1]} 30... Qd7 {[%clk
0:00:58.5]} 31. b5 {[%clk 0:00:37.8]} 31... Rc8 {[%clk 0:00:53.4]} 32. Bc4+
{[%clk 0:00:36.3]} 32... Kh8 {[%clk 0:00:52.2]} 33. Bd5 {[%clk 0:00:36.9]} 33...
b6 {[%clk 0:00:51.9]} 34. Bc6 {[%clk 0:00:28.8]} 34... Qe6 {[%clk 0:00:50.1]}
35. d7 {[%clk 0:00:28.6]} 35... Rb8 {[%clk 0:00:50.7]} 36. cxb6 {[%clk
0:00:27.8]} 36... Qe5 {[%clk 0:00:52.1]} 37. Rd2 {[%clk 0:00:27.8]} 37... Rff8
{[%clk 0:00:51.3]} 38. Qd4 {[%clk 0:00:27.5]} 38... Qe7 {[%clk 0:00:51.1]} 39.
Qd6 {[%clk 0:00:26.3]} 39... Qg5 {[%clk 0:00:51.1]} 40. Bxe4 {[%clk 0:00:19.9]}
40... g6 {[%clk 0:00:45.9]} 41. Qe5+ {[%clk 0:00:19.9]} 1-0